bitfinex/quotes_BTCUSD_20250101
["timestamp","ask_amount","ask_price","bid_price","bid_amount"]
[1735725169863,0.213716,93583.0,93580.0,0.0662489]
[1735725170075,0.213718,93581.0,93580.0,0.0662489]
[1735725170258,0.427436,93581.0,93580.0,0.0662489]
[1735725170625,0.23741646,93594.0,93587.0,0.0662489]
[1735725171037,0.213688,93595.0,93587.0,0.0662489]
[1735725171256,0.15,93594.0,93587.0,0.0662489]
[1735725171471,0.363704,93588.0,93587.0,0.0662489]
[1735725171880,0.363704,93588.0,93586.0,0.0662489]
[1735725172072,0.363704,93588.0,93587.0,0.0662489]
[1735725172427,0.363704,93588.0,93586.0,0.0662489]
[1735725172629,0.36361058,93588.0,93587.0,0.0662489]
[1735725173985,0.36361058,93588.0,93587.0,0.0692489]
[1735725174821,0.36361058,93588.0,93587.0,0.003]
[1735725175989,0.36361058,93588.0,93587.0,0.0692489]
[1735725176837,0.36361058,93588.0,93587.0,0.003]
[1735725180723,1.60478158,93588.0,93587.0,0.003]
[1735725180922,1.60799158,93588.0,93587.0,0.003]
[1735725181844,1.62770984,93588.0,93587.0,0.003]
[1735725182057,1.70970984,93588.0,93587.0,0.003]
[1735725183300,1.67300984,93588.0,93587.0,0.003]
[1735725183719,1.67400984,93588.0,93587.0,0.003]
[1735725183927,0.01971826,93584.0,93570.0,0.0662489]
[1735725184126,0.15,93574.0,93570.0,0.0662489]
[1735725184751,0.15,93574.0,93567.0,0.0662489]
[1735725184972,0.15,93574.0,93570.0,0.0662489]
[1735725185179,0.15,93574.0,93562.0,0.0001704]
[1735725185394,0.15,93565.0,93562.0,0.0001704]
[1735725185598,0.15,93565.0,93562.0,0.0664193]
[1735725186432,0.15,93568.0,93562.0,0.0664193]
[1735725186757,0.15,93566.0,93562.0,0.0714193]
[1735725187297,0.15,93564.0,93562.0,0.0051704]
[1735725187518,0.859185,93563.0,93562.0,0.0001704]
[1735725187723,0.940701,93563.0,93562.0,0.0031704]
[1735725187931,0.722232,93563.0,93562.0,0.0031704]
[1735725188145,0.722232,93563.0,93562.0,0.0001704]
[1735725188146,0.15,93563.0,93562.0,0.0001704]
[1735725188594,0.519972,93563.0,93562.0,0.0001704]
[1735725188790,0.569972,93563.0,93562.0,0.0001704]
[1735725189110,0.58969026,93563.0,93562.0,0.0001704]
[1735725189573,0.24147808,93563.0,93562.0,0.0051704]
[1735725189970,0.24547808,93563.0,93562.0,0.0051704]
[1735725190180,0.24547808,93563.0,93562.0,0.0001704]
[1735725190592,0.24147808,93563.0,93562.0,0.0001704]
[1735725190803,0.24347808,93563.0,93562.0,0.0001704]
[1735725192671,0.24147808,93563.0,93562.0,0.0001704]
[1735725193094,0.24347808,93563.0,93562.0,0.0001704]
[1735725193511,0.24147808,93563.0,93562.0,0.0001704]
[1735725193915,0.24347808,93563.0,93562.0,0.0001704]
[1735725195533,0.213789,93550.0,93549.0,0.06239662]
[1735725195728,4.974e-05,93563.0,93549.0,0.06239662]
[1735725195928,0.213776,93556.0,93549.0,0.06239662]
[1735725196190,0.00204974,93563.0,93549.0,0.06239662]
[1735725196426,0.213767,93560.0,93549.0,0.06239662]
[1735725196627,0.213767,93560.0,93549.0,0.05773057]
[1735725196873,0.213767,93560.0,93550.0,0.08]
[1735725197685,0.214767,93560.0,93550.0,0.08]
[1735725198842,0.213767,93560.0,93550.0,0.08]
[1735725199288,0.214767,93560.0,93550.0,0.082]
[1735725200133,0.214767,93560.0,93550.0,0.18598632]
[1735725203029,0.213776,93556.0,93550.0,0.18598632]
[1735725203226,0.213776,93556.0,93550.0,0.18398632]
[1735725203430,0.213776,93556.0,93550.0,0.18598632]
[1735725203829,0.213776,93556.0,93550.0,0.18398632]
[1735725204066,0.213776,93556.0,93550.0,0.18598632]
[1735725205198,0.213776,93556.0,93550.0,0.18398632]
[1735725205762,0.213787,93552.0,93550.0,0.089]
[1735725205969,0.213787,93552.0,93550.0,0.081]
[1735725206110,0.213787,93552.0,93550.0,0.089]
[1735725206310,0.213787,93552.0,93550.0,0.088]
[1735725206516,0.213776,93556.0,93550.0,0.08]
[1735725206517,0.13597796,93556.0,93550.0,0.08]
[1735725206721,0.129829,93555.0,93550.0,0.088]
[1735725206934,0.213777,93555.0,93550.0,0.09]
[1735725207136,0.180013,93554.0,93550.0,0.082]
[1735725207364,0.180013,93554.0,93550.0,0.08]
[1735725207766,0.213777,93555.0,93550.0,0.08]
[1735725208161,0.213777,93555.0,93550.0,0.13502917]
[1735725208371,0.213777,93555.0,93550.0,0.14302917]
[1735725208770,0.213777,93555.0,93550.0,0.08]
[1735725208970,0.2179,93554.0,93550.0,0.082]
[1735725209202,0.213782,93553.0,93550.0,0.082]
[1735725209407,0.23350026,93553.0,93550.0,0.002]
[1735725209635,0.213787,93551.0,93550.0,0.002]
[1735725209948,0.213787,93551.0,93550.0,0.003]
[1735725210116,0.213787,93551.0,93550.0,0.008]
[1735725210326,0.213787,93551.0,93549.0,0.0001706]
[1735725211284,0.213782,93553.0,93549.0,0.0001706]
[1735725212351,0.214782,93553.0,93549.0,0.0001706]
[1735725212549,0.213782,93553.0,93549.0,0.0001706]
[1735725212952,0.427564,93553.0,93549.0,0.0031706]
[1735725213157,0.427564,93553.0,93549.0,0.0001706]
[1735725213639,0.427564,93553.0,93549.0,0.0041706]
[1735725213839,0.427564,93553.0,93549.0,0.0001706]
[1735725214075,0.427564,93553.0,93549.0,0.0041706]
[1735725215041,0.01971826,93556.0,93549.0,0.0041706]
[1735725215239,0.213787,93551.0,93549.0,0.0041706]
[1735725215983,0.213787,93551.0,93549.0,0.0001706]
[1735725216352,0.213784,93552.0,93549.0,0.0001706]
[1735725216752,0.213784,93552.0,93549.0,0.0051706]
[1735725216930,0.213784,93552.0,93549.0,0.0061706]
[1735725217527,0.15,93555.0,93550.0,0.0798]
[1735725217734,8.53e-05,93560.0,93554.0,0.05502917]
[1735725217950,0.19221405,93567.0,93556.0,0.0798]
[1735725218174,0.19221405,93567.0,93557.0,0.10398632]
[1735725218387,0.19221405,93567.0,93559.0,0.13482917]
[1735725218587,0.14757088,93570.0,93560.0,0.10398632]
[1735725219013,0.15,93577.0,93563.0,0.08028174]
[1735725219213,0.213715,93583.0,93564.0,0.10398632]
[1735725219434,0.213715,93583.0,93565.0,0.0798]
[1735725219616,0.15,93578.0,93566.0,0.10398632]
[1735725220046,0.213727,93577.0,93566.0,0.10398632]
[1735725220464,0.213739,93572.0,93566.0,0.10398632]
[1735725220774,0.21373,93576.0,93566.0,0.10398632]
[1735725221023,0.21374,93572.0,93566.0,0.10598632]
[1735725221187,0.21373,93576.0,93566.0,0.002]
[1735725221514,0.213746,93569.0,93566.0,0.002]
[1735725222105,0.213746,93569.0,93565.0,0.0798]
[1735725222855,0.213746,93569.0,93566.0,0.007]
[1735725223291,0.213746,93569.0,93565.0,0.0798]
[1735725223499,0.213746,93569.0,93565.0,0.0868]
[1735725223906,0.213746,93569.0,93565.0,0.0798]
[1735725224220,0.213746,93569.0,93566.0,0.001]
[1735725224592,0.213746,93569.0,93565.0,0.0798]
[1735725224998,0.213746,93569.0,93565.0,0.0808]
[1735725225311,0.213746,93569.0,93566.0,0.007]
[1735725225529,0.213746,93569.0,93565.0,0.0808]
[1735725225961,0.213746,93569.0,93565.0,0.0878]
[1735725226195,0.21373,93576.0,93566.0,0.10398632]
[1735725226404,0.21373,93576.0,93566.0,0.11098632]
[1735725226783,0.21373,93576.0,93566.0,0.10498632]
[1735725227142,0.21373,93576.0,93566.0,0.10398632]
[1735725228170,8.52e-05,93588.0,93573.0,0.05502917]
[1735725228171,0.213709,93585.0,93573.0,0.05502917]
[1735725228421,0.213709,93585.0,93574.0,0.18098632]
[1735725229760,0.213709,93585.0,93574.0,0.18298632]
[1735725229964,0.427419,93585.0,93574.0,0.18298632]
[1735725231210,0.427419,93585.0,93574.0,0.21948604]
[1735725231720,0.427419,93585.0,93574.0,0.21748604]
[1735725232197,0.427419,93585.0,93574.0,0.18598632]
[1735725232888,8.53e-05,93585.0,93574.0,0.18598632]
[1735725234594,0.2137953,93585.0,93574.0,0.18598632]
[1735725236604,0.2137953,93585.0,93574.0,0.18098632]
[1735725237672,0.2137953,93585.0,93574.0,0.18198632]
[1735725237915,0.2137953,93585.0,93574.0,0.18898632]
[1735725238116,0.2137953,93585.0,93574.0,0.18798632]
[1735725238322,0.2137953,93585.0,93574.0,0.18098632]
[1735725238559,0.2137953,93585.0,93574.0,0.18898632]
[1735725238887,0.2137953,93585.0,93575.0,0.1237]
[1735725239112,0.2137953,93585.0,93576.0,0.10398632]
[1735725239827,0.4275053,93585.0,93576.0,0.10398632]
[1735725240253,0.2137953,93585.0,93576.0,0.10398632]
[1735725240550,0.213719,93581.0,93576.0,0.10398632]
[1735725240747,0.213719,93581.0,93576.0,0.10498632]
[1735725241475,0.213719,93581.0,93576.0,0.10398632]
[1735725241668,0.213719,93581.0,93576.0,0.11298632]
[1735725242439,0.213719,93581.0,93576.0,0.10398632]
[1735725242840,0.427439,93581.0,93576.0,0.11498632]
[1735725243274,0.213719,93581.0,93576.0,0.11498632]
[1735725243526,0.213719,93581.0,93576.0,0.11298632]
[1735725243734,0.213719,93581.0,93576.0,0.11498632]
[1735725244871,0.2137953,93585.0,93576.0,0.11498632]
[1735725245568,8.52e-05,93581.0,93576.0,0.11498632]
[1735725246098,8.52e-05,93581.0,93576.0,0.10598632]
[1735725246520,8.52e-05,93581.0,93576.0,0.10398632]
[1735725246840,8.52e-05,93581.0,93576.0,0.10498632]
[1735725247178,8.52e-05,93581.0,93576.0,0.10398632]
[1735725247376,0.2138042,93581.0,93576.0,0.10398632]
[1735725247977,0.2138042,93581.0,93576.0,0.11098632]
[1735725248151,0.2138042,93581.0,93576.0,0.10598632]
[1735725248558,0.2138042,93581.0,93576.0,0.11498632]
[1735725248742,0.2138042,93581.0,93576.0,0.10598632]
[1735725249151,0.2138042,93581.0,93576.0,0.11498632]
[1735725249655,0.2138042,93581.0,93576.0,0.11298632]
[1735725249867,0.2138042,93581.0,93576.0,0.11498632]
[1735725250525,0.2138042,93581.0,93576.0,0.11298632]
[1735725250705,0.2138042,93581.0,93576.0,0.11398632]
[1735725250837,0.213727,93577.0,93576.0,0.10498632]
[1735725251056,0.213727,93577.0,93576.0,0.001]
[1735725251254,0.213727,93577.0,93576.0,0.007]
[1735725252057,0.213727,93577.0,93576.0,0.001]
[1735725252278,0.213727,93577.0,93576.0,0.005]
[1735725252693,0.213727,93577.0,93576.0,0.004]
[1735725255052,0.213727,93577.0,93576.0,0.01212]
[1735725255500,0.213727,93577.0,93576.0,0.004]
[1735725258790,0.213727,93577.0,93576.0,0.0041704]
[1735725263146,8.52e-05,93581.0,93576.0,0.10815672]
[1735725263367,8.52e-05,93581.0,93577.0,0.10398632]
[1735725264210,0.0010852,93581.0,93577.0,0.10398632]
[1735725264420,0.0010852,93581.0,93577.0,0.10598632]
[1735725265279,0.0010852,93581.0,93578.0,0.0801]
[1735725265469,0.0010852,93581.0,93579.0,0.10398632]
[1735725265645,8.52e-05,93581.0,93579.0,0.10398632]
[1735725265989,0.0010852,93581.0,93579.0,0.10398632]
[1735725266464,8.52e-05,93581.0,93579.0,0.10398632]
[1735725266877,8.52e-05,93581.0,93579.0,0.10498632]
[1735725268358,8.52e-05,93581.0,93579.0,0.11098632]
[1735725268953,0.21372,93580.0,93579.0,0.11098632]
[1735725269163,0.21372,93580.0,93579.0,0.007]
[1735725269921,0.21372,93580.0,93579.0,0.006]
[1735725270354,0.21372,93580.0,93579.0,0.007]
[1735725270701,0.21372,93580.0,93579.0,0.006]
[1735725271110,0.21372,93580.0,93578.0,0.0801]
[1735725271953,0.21372,93580.0,93579.0,0.004]
[1735725272160,0.21372,93580.0,93578.0,0.0801]
[1735725272561,0.21372,93580.0,93578.0,0.0841]
[1735725272759,0.21372,93580.0,93578.0,0.0801]
[1735725273227,0.21372,93580.0,93579.0,0.004]
[1735725274391,0.21372,93580.0,93578.0,0.0801]
[1735725274723,0.21372,93580.0,93578.0,0.0841]
[1735725274954,0.213723,93579.0,93576.0,0.0001704]
[1735725275154,0.363727,93577.0,93576.0,0.0001704]
[1735725275352,1.282429,93577.0,93576.0,0.0001704]
[1735725275721,1.253783,93577.0,93576.0,0.0001704]
[1735725276888,1.256783,93577.0,93576.0,0.0001704]
[1735725277296,0.366727,93577.0,93576.0,0.0001704]
[1735725277584,0.367727,93577.0,93576.0,0.0001704]
[1735725277944,0.626291,93577.0,93576.0,0.0001704]
[1735725278186,0.624291,93577.0,93576.0,0.0001704]
[1735725278661,0.627291,93577.0,93576.0,0.0001704]
[1735725279028,0.624291,93577.0,93576.0,0.0001704]
[1735725279262,0.625291,93577.0,93576.0,0.0001704]
[1735725279799,0.60664495,93577.0,93576.0,0.0001704]
[1735725279974,0.90677195,93577.0,93576.0,0.0001704]
[1735725280320,0.75122195,93577.0,93576.0,0.0001704]
[1735725280924,0.77094021,93577.0,93576.0,0.0001704]
[1735725281604,0.53002226,93577.0,93576.0,0.0001704]
[1735725283921,0.77087148,93577.0,93576.0,0.0001704]
[1735725284994,0.53002226,93577.0,93576.0,0.0001704]
[1735725286647,0.484269,93577.0,93576.0,0.0001704]
[1735725287257,0.365727,93577.0,93576.0,0.0001704]
[1735725288162,0.364727,93577.0,93576.0,0.0001704]
[1735725288560,0.483263,93577.0,93576.0,0.0001704]
[1735725289072,0.482263,93577.0,93576.0,0.0001704]
[1735725289311,0.483263,93577.0,93576.0,0.0001704]
[1735725290400,0.525262,93577.0,93576.0,0.0001704]
[1735725290571,0.594762,93577.0,93576.0,0.0001704]
[1735725290952,0.594762,93577.0,93576.0,0.0011704]
[1735725291377,0.595762,93577.0,93576.0,0.0011704]
[1735725291900,0.594762,93577.0,93576.0,0.0011704]
[1735725292262,0.595762,93577.0,93576.0,0.0001704]
[1735725292488,0.595762,93577.0,93576.0,0.0021704]
[1735725294859,0.595762,93577.0,93576.0,0.0001704]
[1735725295244,0.231035,93577.0,93576.0,0.0021704]
[1735725295446,0.47188422,93577.0,93576.0,0.0021704]
[1735725295655,0.47288422,93577.0,93576.0,0.0041704]
[1735725296735,0.445762,93577.0,93576.0,0.0041704]
[1735725297033,0.445762,93577.0,93576.0,0.0001704]
[1735725297240,0.595762,93577.0,93576.0,0.0021704]
[1735725297436,0.594762,93577.0,93576.0,0.0021704]
[1735725297642,0.595762,93577.0,93576.0,0.0021704]
[1735725297883,0.59583646,93577.0,93576.0,0.0021704]
[1735725298014,0.59483646,93577.0,93576.0,0.0001704]
[1735725298219,0.213749,93568.0,93561.0,0.06494272]
[1735725300020,0.213749,93568.0,93564.0,0.05502917]
[1735725300242,0.213749,93568.0,93561.0,0.06494272]
[1735725300681,0.213749,93568.0,93561.0,0.06994272]
[1735725300826,0.213749,93568.0,93561.0,0.06594272]
[1735725301045,0.213749,93568.0,93564.0,0.005]
[1735725301462,0.213749,93568.0,93561.0,0.06594272]
[1735725301696,0.213749,93568.0,93561.0,0.07094272]
[1735725302084,0.213749,93568.0,93561.0,0.06494272]
[1735725302305,0.213749,93568.0,93564.0,0.001]
[1735725302555,0.427498,93568.0,93564.0,0.001]
[1735725302785,0.15,93565.0,93564.0,0.001]
[1735725303008,0.620361,93565.0,93564.0,0.001]
[1735725303221,0.15,93565.0,93564.0,0.001]
[1735725303414,0.15,93565.0,93564.0,0.0849]
[1735725303615,0.15,93565.0,93564.0,0.0799]
[1735725303795,0.15,93571.0,93564.0,0.0799]
[1735725303971,0.15,93571.0,93564.0,0.0809]
[1735725304180,0.15,93569.0,93564.0,0.0789]
[1735725304634,0.15,93569.0,93564.0,0.0809]
[1735725304958,0.15,93569.0,93564.0,0.0789]
[1735725305154,0.15,93569.0,93564.0,0.0819]
[1735725305454,0.21380246,93577.0,93567.0,0.05502917]
[1735725305455,7.446e-05,93577.0,93567.0,0.05502917]
[1735725305676,7.446e-05,93577.0,93570.0,0.05502917]
[1735725305895,7.446e-05,93577.0,93571.0,0.18288632]
[1735725306273,7.446e-05,93577.0,93570.0,0.05502917]
[1735725306274,0.51711368,93571.0,93570.0,0.05502917]
[1735725306496,7.446e-05,93577.0,93570.0,0.05502917]
[1735725307033,8.53e-05,93571.0,93570.0,0.05502917]
[1735725307879,8.53e-05,93571.0,93570.0,0.06402917]
[1735725308062,8.53e-05,93571.0,93570.0,0.05502917]
[1735725308497,8.53e-05,93571.0,93570.0,0.06402917]
[1735725308698,8.53e-05,93571.0,93570.0,0.06702917]
[1735725309137,0.213711,93584.0,93570.0,0.06702917]
[1735725309339,8.53e-05,93585.0,93571.0,0.0789]
[1735725309600,0.213711,93584.0,93571.0,0.0789]
[1735725309810,8.53e-05,93585.0,93571.0,0.0789]
[1735725310007,0.213736,93574.0,93571.0,0.0789]
[1735725310685,0.213736,93574.0,93571.0,0.07663997]
[1735725310864,0.213736,93574.0,93571.0,0.07363997]
[1735725311297,0.213736,93574.0,93571.0,0.08263997]
[1735725311500,0.213736,93574.0,93571.0,0.07363997]
[1735725311836,0.213736,93574.0,93571.0,0.07963997]
[1735725312216,0.213736,93574.0,93571.0,0.08063997]
[1735725312877,0.213736,93574.0,93571.0,0.007]
[1735725315517,0.213738,93573.0,93571.0,0.007]
[1735725315882,0.213732,93576.0,93571.0,0.007]
[1735725316817,0.213732,93576.0,93565.0,0.13392917]
[1735725317027,0.213732,93576.0,93571.0,0.006]
[1735725317421,0.427464,93576.0,93565.0,0.13400363]
[1735725317630,0.213739,93572.0,93571.0,0.005]
[1735725317984,0.213732,93576.0,93571.0,0.005]
[1735725318214,0.213732,93576.0,93571.0,0.006]
[1735725318393,0.213732,93576.0,93571.0,0.001]
[1735725318591,8.53e-05,93577.0,93570.0,0.05502917]
[1735725318998,8.53e-05,93577.0,93571.0,0.001]
[1735725319387,8.53e-05,93577.0,93570.0,0.05502917]
[1735725320251,0.21373,93576.0,93570.0,0.05502917]
[1735725320943,0.21373,93576.0,93570.0,0.05902917]
[1735725321548,0.21373,93576.0,93570.0,0.05502917]
[1735725321751,0.21373,93576.0,93570.0,0.05602917]
[1735725321912,0.21373,93576.0,93570.0,0.06102917]
[1735725324118,0.21373,93576.0,93570.0,0.05602917]
[1735725324319,0.21373,93576.0,93570.0,0.06102917]
[1735725325037,0.21373,93576.0,93570.0,0.06002917]
[1735725325437,0.01971826,93584.0,93570.0,0.006]
[1735725325656,0.213738,93573.0,93570.0,0.006]
[1735725326273,0.213738,93573.0,93570.0,0.005]
[1735725326719,0.213738,93573.0,93565.0,0.07897446]
[1735725327065,0.213738,93573.0,93570.0,0.006]
[1735725327435,0.427476,93573.0,93570.0,0.006]
[1735725327645,0.526483,93572.0,93570.0,0.006]
[1735725328075,0.213741,93571.0,93570.0,0.006]
[1735725328335,0.213741,93571.0,93565.0,7.446e-05]
[1735725328336,0.631237,93571.0,93565.0,7.446e-05]
[1735725328539,0.213752,93567.0,93565.0,7.446e-05]
[1735725328713,0.114524,93566.0,93565.0,7.446e-05]
[1735725329054,0.213752,93567.0,93565.0,7.446e-05]
[1735725329279,0.213752,93567.0,93565.0,0.00024506]
[1735725330026,0.213743,93570.0,93565.0,0.00024506]
[1735725330839,0.213743,93570.0,93565.0,0.00324506]
[1735725331021,0.427488,93570.0,93565.0,0.00024506]
[1735725331411,0.427488,93570.0,93565.0,0.00224506]
[1735725331610,0.213748,93568.0,93565.0,0.00224506]
[1735725331808,0.127655,93567.0,93565.0,0.00224506]
[1735725332022,0.213752,93566.0,93565.0,0.00224506]
[1735725332220,0.655081,93566.0,93565.0,0.00224506]
[1735725332569,0.473622,93566.0,93565.0,0.00224506]
[1735725332902,0.473622,93566.0,93565.0,0.00024506]
[1735725333101,0.473622,93566.0,93565.0,0.00324506]
[1735725333301,0.18677,93566.0,93565.0,0.00324506]
[1735725333528,0.213748,93568.0,93565.0,0.00324506]
[1735725333955,0.213748,93568.0,93565.0,0.00024506]
[1735725334363,0.213748,93568.0,93565.0,0.00424506]
[1735725334554,0.213748,93568.0,93565.0,0.00024506]
[1735725334997,0.213748,93568.0,93565.0,0.00324506]
[1735725335862,0.213752,93566.0,93565.0,0.00324506]
[1735725336064,0.641774,93566.0,93565.0,0.00324506]
[1735725336646,0.641774,93566.0,93565.0,0.00024506]
[1735725336843,0.641774,93566.0,93565.0,0.00424506]
[1735725337255,0.569211,93566.0,93565.0,0.00424506]
[1735725338088,0.359969,93566.0,93565.0,0.00424506]
[1735725339119,0.13807262,93566.0,93565.0,0.00424506]
[1735725339320,0.333769,93567.0,93565.0,0.00424506]
[1735725339519,0.311743,93566.0,93565.0,0.00424506]
[1735725340264,0.311743,93566.0,93565.0,0.00024506]
[1735725340598,0.1896963,93568.0,93565.0,0.00324506]
[1735725340803,0.329986,93567.0,93565.0,0.00324506]
[1735725340996,0.75289,93566.0,93565.0,0.00024506]
[1735725341114,0.825527,93566.0,93565.0,0.00424506]
[1735725341679,0.675527,93566.0,93565.0,0.00424506]
[1735725341857,0.92857,93567.0,93565.0,0.00424506]
[1735725342081,0.677641,93566.0,93565.0,0.00024506]
[1735725342295,0.929641,93567.0,93565.0,0.00024506]
[1735725342499,0.677641,93567.0,93565.0,0.00024506]
[1735725342735,0.213752,93566.0,93565.0,0.00024506]
[1735725342945,1.143393,93566.0,93565.0,0.00024506]
[1735725343297,1.36301126,93566.0,93565.0,0.00024506]
[1735725343501,1.36301126,93566.0,93565.0,0.00324506]
[1735725343854,1.41301126,93566.0,93565.0,0.00324506]
[1735725344194,1.41301126,93566.0,93565.0,0.00624506]
[1735725344409,1.41301126,93566.0,93565.0,0.00024506]
[1735725344587,1.41401126,93566.0,93565.0,0.00024506]
[1735725345000,0.48337026,93566.0,93565.0,0.00024506]
[1735725345206,1.958098,93566.0,93565.0,0.00024506]
[1735725345410,0.334699,93566.0,93565.0,0.00024506]
[1735725345614,0.151,93566.0,93565.0,0.00024506]
[1735725346426,0.152,93566.0,93565.0,0.00024506]
[1735725346894,0.151,93566.0,93565.0,0.00024506]
[1735725347067,0.15,93566.0,93565.0,0.00024506]
[1735725347209,0.15,93566.0,93565.0,0.00424506]
[1735725347748,0.15,93566.0,93565.0,0.00024506]
[1735725347917,0.15,93566.0,93565.0,0.00324506]
[1735725348120,0.15,93566.0,93565.0,0.00024506]
[1735725349448,0.15,93566.0,93565.0,0.00224506]
[1735725350059,0.15,93566.0,93565.0,0.01124506]
[1735725350897,0.15,93566.0,93565.0,0.00224506]
[1735725351313,0.15,93566.0,93565.0,0.00824506]
[1735725351558,0.15,93566.0,93565.0,0.00024506]
[1735725351923,0.15,93566.0,93565.0,0.00624506]
[1735725353144,0.15,93566.0,93565.0,0.00724506]
[1735725353996,0.1500853,93566.0,93565.0,0.00724506]
[1735725355253,0.1500853,93566.0,93565.0,0.00624506]
[1735725356166,0.1500853,93566.0,93565.0,0.00024506]
[1735725356560,0.1500853,93566.0,93565.0,0.00324506]
[1735725361762,0.213733,93575.0,93565.0,0.00324506]
[1735725362097,0.213747,93569.0,93565.0,0.00324506]
[1735725362295,0.213747,93569.0,93565.0,0.00024506]
[1735725362784,0.427494,93569.0,93565.0,0.00024506]
[1735725363235,0.427494,93569.0,93565.0,0.00324506]
[1735725363370,0.427494,93569.0,93565.0,0.00024506]
[1735725363790,0.427494,93569.0,93565.0,0.00124506]
[1735725365587,0.428494,93569.0,93565.0,0.00124506]
[1735725374283,8.53e-05,93570.0,93565.0,0.00124506]
[1735725374657,0.214747,93569.0,93565.0,0.00124506]
[1735725375079,0.213747,93569.0,93565.0,0.00024506]
[1735725375278,0.15,93576.0,93565.0,0.00024506]
[1735725375479,0.001,93570.0,93565.0,0.00124506]
[1735725375862,0.213747,93569.0,93565.0,0.00224506]
[1735725376311,0.214747,93569.0,93565.0,0.00124506]
[1735725376894,0.214747,93569.0,93565.0,0.00024506]
[1735725377095,0.214747,93569.0,93565.0,0.00124506]
[1735725378179,0.194747,93569.0,93565.0,0.00124506]
[1735725378802,0.21375,93567.0,93565.0,0.00124506]
[1735725379125,0.15,93568.0,93565.0,0.00124506]
[1735725379834,0.15,93568.0,93565.0,0.00024506]
[1735725380159,0.15,93568.0,93565.0,0.00224506]
[1735725380490,0.15,93568.0,93565.0,0.00024506]
[1735725382662,0.15,93568.0,93565.0,0.00224506]
[1735725382989,0.15,93566.0,93565.0,0.00224506]
[1735725383800,0.15,93566.0,93565.0,0.00024506]
[1735725385714,0.15,93566.0,93565.0,0.00324506]
[1735725386022,0.15,93566.0,93565.0,0.00024506]
[1735725386444,0.15,93566.0,93565.0,0.00224506]
[1735725386875,0.15,93566.0,93565.0,0.00424506]
[1735725388609,0.15,93568.0,93565.0,0.00424506]
[1735725389609,0.21375,93567.0,93565.0,0.00024506]
[1735725389908,0.15,93566.0,93565.0,0.00124506]
[1735725392302,0.15,93566.0,93565.0,0.00024506]
[1735725392670,0.15,93566.0,93565.0,0.00224506]
[1735725393429,0.522186,93566.0,93565.0,0.00224506]
[1735725396711,0.265247,93566.0,93565.0,0.00224506]
[1735725396908,0.15,93566.0,93565.0,0.00224506]
[1735725398133,0.265247,93566.0,93565.0,0.00224506]
[1735725399852,0.15,93566.0,93565.0,0.00224506]
[1735725400057,0.264622,93566.0,93565.0,0.00224506]
[1735725400961,0.15,93566.0,93565.0,0.00224506]
[1735725401368,0.535836,93566.0,93565.0,0.00224506]
[1735725401793,0.392136,93566.0,93565.0,0.00024506]
[1735725402200,0.390136,93566.0,93565.0,0.00024506]
[1735725402400,0.63147873,93566.0,93565.0,0.00024506]
[1735725402751,0.63573073,93566.0,93565.0,0.00024506]
[1735725403089,0.71223073,93566.0,93565.0,0.00024506]
[1735725403471,0.94460673,93566.0,93565.0,0.00024506]
[1735725403777,0.703264,93566.0,93565.0,0.00024506]
[1735725403953,0.702264,93566.0,93565.0,0.00024506]
[1735725404165,0.703264,93566.0,93565.0,0.00024506]
[1735725404792,0.702264,93566.0,93565.0,0.00024506]
[1735725405186,0.704264,93566.0,93565.0,0.00024506]
[1735725405683,0.702264,93566.0,93565.0,0.00024506]
[1735725407122,0.703264,93566.0,93565.0,0.00024506]
[1735725407540,0.702264,93566.0,93565.0,0.00024506]
[1735725407944,0.704264,93566.0,93565.0,0.00024506]
[1735725408885,0.702264,93566.0,93565.0,0.00024506]
[1735725409084,0.704264,93566.0,93565.0,0.00024506]
[1735725410270,0.702264,93566.0,93565.0,0.00024506]
[1735725410455,0.704264,93566.0,93565.0,0.00024506]
[1735725411651,0.231752,93566.0,93565.0,0.00024506]
[1735725411852,1.522611,93566.0,93565.0,0.00024506]
[1735725412060,1.522611,93566.0,93565.0,4.506e-05]
[1735725412350,1.64631558,93566.0,93565.0,4.506e-05]
[1735725413066,1.32849358,93566.0,93565.0,4.506e-05]
[1735725413271,1.14544058,93566.0,93565.0,4.506e-05]
[1735725414341,0.89402058,93566.0,93565.0,4.506e-05]
[1735725415099,0.77634658,93566.0,93565.0,4.506e-05]
[1735725415339,0.76482258,93566.0,93565.0,4.506e-05]
[1735725417040,0.78782258,93566.0,93565.0,4.506e-05]
[1735725418157,0.78582258,93566.0,93565.0,4.506e-05]
[1735725418349,1.07372233,93566.0,93565.0,4.506e-05]
[1735725418988,1.07072233,93566.0,93565.0,4.506e-05]
[1735725420416,1.07372233,93566.0,93565.0,4.506e-05]
[1735725420593,0.78882258,93566.0,93565.0,4.506e-05]
[1735725421094,0.78982258,93566.0,93565.0,4.506e-05]
[1735725421501,0.78582258,93566.0,93565.0,4.506e-05]
[1735725421735,0.78882258,93566.0,93565.0,4.506e-05]
[1735725422008,0.78982258,93566.0,93565.0,4.506e-05]
[1735725422216,0.78582258,93566.0,93565.0,4.506e-05]
[1735725422415,0.78682258,93566.0,93565.0,4.506e-05]
[1735725422992,0.78682258,93566.0,93565.0,6e-08]
[1735725423159,2.128687,93565.0,93564.0,6.6e-07]
[1735725423359,2.68634658,93565.0,93564.0,6.6e-07]
[1735725423597,0.63285958,93565.0,93564.0,6.6e-07]
[1735725424631,0.63685958,93565.0,93564.0,6.6e-07]
[1735725425006,0.63885958,93565.0,93564.0,6.6e-07]
[1735725429994,0.49345958,93565.0,93564.0,6.6e-07]
[1735725430198,0.49345958,93565.0,93564.0,0.07550066]
[1735725430199,0.156,93565.0,93564.0,0.07550066]
[1735725430969,0.154,93565.0,93564.0,0.07550066]
[1735725431171,0.004,93565.0,93564.0,0.07550066]
[1735725431372,0.0033373,93566.0,93564.0,0.07650066]
[1735725431590,0.0033373,93566.0,93564.0,0.13152983]
[1735725431798,0.0033373,93566.0,93564.0,0.13052983]
[1735725432160,0.0033373,93566.0,93564.0,0.08050066]
[1735725432283,0.0033373,93566.0,93564.0,0.13052983]
[1735725432690,0.0043373,93566.0,93564.0,0.08250066]
[1735725432906,0.0033373,93566.0,93564.0,0.13052983]
[1735725433151,0.0033373,93566.0,93564.0,0.13252983]